[Event "*** Titled Tuesday 3|2 Blitz (Early)"]
[Site "Chess.com"]
[Date "2016.12.06"]
[Round "1"]
[White "avto24"]
[Black "VSERGUEI"]
[Result "0-1"]
[WhiteElo "2292"]
[BlackElo "2587"]
[TimeControl "180+2"]
[EndTime "11:07:59 PST"]
[Termination "VSERGUEI won by resignation"]

1. e4 {[%clk 0:03:01.7]} 1... e6 {[%clk 0:03:00.3]} 2. d4 {[%clk 0:03:02.4]}
2... d5 {[%clk 0:03:00.6]} 3. exd5 {[%clk 0:03:03.6]} 3... exd5 {[%clk
0:03:01.2]} 4. Nc3 {[%clk 0:03:04.7]} 4... c6 {[%clk 0:03:00.6]} 5. Bd3 {[%clk
0:03:04.3]} 5... Bd6 {[%clk 0:02:59.1]} 6. Nge2 {[%clk 0:03:04.9]} 6... Ne7
{[%clk 0:02:58.6]} 7. Bf4 {[%clk 0:03:01.5]} 7... Bg4 {[%clk 0:02:54.6]} 8. f3
{[%clk 0:03:01.5]} 8... Bh5 {[%clk 0:02:54]} 9. Qd2 {[%clk 0:03:02]} 9... Bg6
{[%clk 0:02:53.7]} 10. O-O-O {[%clk 0:03:00.5]} 10... b5 {[%clk 0:02:46.8]} 11.
g4 {[%clk 0:02:59.3]} 11... a5 {[%clk 0:02:43.6]} 12. h4 {[%clk 0:02:57.9]}
12... a4 {[%clk 0:02:43.3]} 13. h5 {[%clk 0:02:44.3]} 13... Bxd3 {[%clk
0:02:42.3]} 14. Qxd3 {[%clk 0:02:46.2]} 14... b4 {[%clk 0:02:41.4]} 15. Nb1
{[%clk 0:02:47.1]} 15... Na6 {[%clk 0:02:35.2]} 16. h6 {[%clk 0:02:35.8]} 16...
g6 {[%clk 0:02:33.9]} 17. Bg5 {[%clk 0:02:36.5]} 17... O-O {[%clk 0:02:30.3]}
18. f4 {[%clk 0:02:26]} 18... f6 {[%clk 0:02:29.4]} 19. Bh4 {[%clk 0:02:26.6]}
19... Nc7 {[%clk 0:02:24.9]} 20. Qd2 {[%clk 0:02:26]} 20... Nb5 {[%clk
0:02:20.7]} 21. f5 {[%clk 0:02:25.2]} 21... b3 {[%clk 0:02:08]} 22. cxb3 {[%clk
0:02:19.8]} 22... axb3 {[%clk 0:02:08.1]} 23. a3 {[%clk 0:02:21]} 23... Qc7
{[%clk 0:01:58.7]} 24. fxg6 {[%clk 0:02:17.9]} 24... Nxg6 {[%clk 0:01:58.7]} 25.
Rdf1 {[%clk 0:02:09.9]} 25... Nxh4 {[%clk 0:01:38.1]} 26. Rxh4 {[%clk
0:02:08.4]} 26... c5 {[%clk 0:01:38.6]} 27. g5 {[%clk 0:01:49.4]} 27... cxd4+
{[%clk 0:01:36.8]} 28. Kd1 {[%clk 0:01:43.4]} 28... Qc2+ {[%clk 0:01:35.4]} 29.
Qxc2 {[%clk 0:01:43.1]} 29... bxc2+ {[%clk 0:01:35.5]} 30. Kxc2 {[%clk
0:01:44.2]} 30... fxg5 {[%clk 0:01:35.2]} 31. Rg1 {[%clk 0:01:40.6]} 31... Rac8+
{[%clk 0:01:17.6]} 32. Kb3 {[%clk 0:01:34.5]} 32... d3 {[%clk 0:00:59.3]} 33.
Rxg5+ {[%clk 0:01:34.8]} 33... Kh8 {[%clk 0:00:59.6]} 34. Nec3 {[%clk 0:01:33]}
34... Nxc3 {[%clk 0:00:56.7]} 35. Nxc3 {[%clk 0:01:32.6]} 35... Be7 {[%clk
0:00:57.5]} 36. Rhh5 {[%clk 0:01:24.3]} 36... Bxg5 {[%clk 0:00:56.3]} 37. Rxg5
{[%clk 0:01:25.3]} 37... Rb8+ {[%clk 0:00:56.1]} 38. Ka2 {[%clk 0:01:25.5]}
38... Rf2 {[%clk 0:00:49.4]} 39. Rxd5 {[%clk 0:01:21.5]} 39... Rfxb2+ {[%clk
0:00:45.3]} 40. Ka1 {[%clk 0:01:18.7]} 40... d2 {[%clk 0:00:45]} 41. a4 {[%clk
0:00:51.1]} 41... Rc2 {[%clk 0:00:44.5]} 0-1

[Event "*** Titled Tuesday 3|2 Blitz (Early)"]
[Site "Chess.com"]
[Date "2016.12.06"]
[Round "1"]
[White "Morpheus4"]
[Black "Jungle_Jaguar"]
[Result "0-1"]
[WhiteElo "1945"]
[BlackElo "2403"]
[TimeControl "180+2"]
[EndTime "11:08:19 PST"]
[Termination "Jungle_Jaguar won on time"]

1. d4 {[%clk 0:03:01.8]} 1... Nf6 {[%clk 0:02:59.9]} 2. Nf3 {[%clk 0:03:02.2]}
2... d5 {[%clk 0:03:00.4]} 3. Bf4 {[%clk 0:03:01.8]} 3... Bf5 {[%clk 0:03:00.8]}
4. e3 {[%clk 0:03:01.9]} 4... e6 {[%clk 0:03:01.6]} 5. c3 {[%clk 0:03:01.5]}
5... Bd6 {[%clk 0:02:59.2]} 6. Ne5 {[%clk 0:02:56]} 6... O-O {[%clk 0:02:59.1]}
7. Bd3 {[%clk 0:02:55.5]} 7... Bxd3 {[%clk 0:02:51]} 8. Qxd3 {[%clk 0:02:50.5]}
8... Nbd7 {[%clk 0:02:51.7]} 9. Nxd7 {[%clk 0:02:47.3]} 9... Qxd7 {[%clk
0:02:50.1]} 10. Bxd6 {[%clk 0:02:43.5]} 10... cxd6 {[%clk 0:02:50.3]} 11. Nd2
{[%clk 0:02:42.6]} 11... e5 {[%clk 0:02:48.2]} 12. dxe5 {[%clk 0:02:34]} 12...
dxe5 {[%clk 0:02:48.7]} 13. O-O {[%clk 0:02:32.4]} 13... Rad8 {[%clk 0:02:47.9]}
14. Nb3 {[%clk 0:02:26.2]} 14... b6 {[%clk 0:02:46.4]} 15. Rfd1 {[%clk
0:02:23.8]} 15... Qe6 {[%clk 0:02:19.3]} 16. h3 {[%clk 0:02:19.5]} 16... h6
{[%clk 0:02:14.4]} 17. Qa6 {[%clk 0:02:16.8]} 17... Rd7 {[%clk 0:02:13.2]} 18.
Rd3 {[%clk 0:02:13]} 18... Rfd8 {[%clk 0:02:12.9]} 19. Rad1 {[%clk 0:02:12.3]}
19... Qf5 {[%clk 0:02:02]} 20. c4 {[%clk 0:01:57.3]} 20... d4 {[%clk 0:00:58.9]}
21. exd4 {[%clk 0:01:35.1]} 21... exd4 {[%clk 0:00:46.3]} 22. Nxd4 {[%clk
0:00:59.6]} 22... Qe4 {[%clk 0:00:36.6]} 23. f3 {[%clk 0:00:47.6]} 23... Qe5
{[%clk 0:00:25.5]} 24. Qb5 {[%clk 0:00:14.3]} 24... Qc5 {[%clk 0:00:17.8]} 0-1

[Event "*** Titled Tuesday 3|2 Blitz (Early)"]
[Site "Chess.com"]
[Date "2016.12.06"]
[Round "1"]
[White "pastouche06"]
[Black "Mornar1951"]
[Result "0-1"]
[WhiteElo "2302"]
[BlackElo "2604"]
[TimeControl "180+2"]
[EndTime "11:08:24 PST"]
[Termination "Mornar1951 won by resignation"]

1. d4 {[%clk 0:03:02]} 1... d5 {[%clk 0:02:53.5]} 2. c4 {[%clk 0:03:01.6]} 2...
e6 {[%clk 0:02:54.5]} 3. Nc3 {[%clk 0:03:01.4]} 3... Be7 {[%clk 0:02:56]} 4.
cxd5 {[%clk 0:03:01.4]} 4... exd5 {[%clk 0:02:57.2]} 5. Bf4 {[%clk 0:03:02.6]}
5... c6 {[%clk 0:02:58.2]} 6. e3 {[%clk 0:03:03.5]} 6... Bf5 {[%clk 0:02:58.8]}
7. g4 {[%clk 0:03:04.1]} 7... Be6 {[%clk 0:03:00]} 8. h3 {[%clk 0:03:04.9]} 8...
Nd7 {[%clk 0:02:56.7]} 9. Bd3 {[%clk 0:02:52.8]} 9... h5 {[%clk 0:02:35.7]} 10.
Bf5 {[%clk 0:02:27.7]} 10... Bxf5 {[%clk 0:02:18.6]} 11. gxf5 {[%clk 0:02:29.6]}
11... Bg5 {[%clk 0:02:18]} 12. Qf3 {[%clk 0:02:14.9]} 12... Nh6 {[%clk
0:02:13.5]} 13. Nge2 {[%clk 0:01:59.6]} 13... Nxf5 {[%clk 0:02:10]} 14. Rg1
{[%clk 0:01:55.7]} 14... Bxf4 {[%clk 0:02:09]} 15. Qxf4 {[%clk 0:01:56.7]} 15...
Qf6 {[%clk 0:02:03.3]} 16. Qc7 {[%clk 0:01:48.8]} 16... Rb8 {[%clk 0:01:52.6]}
17. O-O-O {[%clk 0:01:41.5]} 17... Nd6 {[%clk 0:01:14.3]} 18. Kb1 {[%clk
0:01:06.6]} 18... Rc8 {[%clk 0:01:10.6]} 19. Qa5 {[%clk 0:01:07.1]} 19... a6
{[%clk 0:01:05.4]} 20. Ka1 {[%clk 0:00:58.2]} 20... Nf8 {[%clk 0:01:00.9]} 21.
e4 {[%clk 0:00:48.3]} 21... dxe4 {[%clk 0:00:56.2]} 22. Ng3 {[%clk 0:00:49.4]}
22... Ne6 {[%clk 0:00:40.9]} 23. Ngxe4 {[%clk 0:00:50]} 23... Nxe4 {[%clk
0:00:36.2]} 24. Nxe4 {[%clk 0:00:51.9]} 24... Qf4 {[%clk 0:00:36]} 25. Rde1
{[%clk 0:00:37.5]} 25... g6 {[%clk 0:00:21.1]} 26. Qb4 {[%clk 0:00:36.4]} 26...
Rc7 {[%clk 0:00:12.4]} 27. Nd6+ {[%clk 0:00:32.3]} 27... Kd7 {[%clk 0:00:12.9]}
28. Nc4 {[%clk 0:00:28.5]} 28... Kc8 {[%clk 0:00:12.3]} 29. d5 {[%clk
0:00:22.1]} 29... cxd5 {[%clk 0:00:08.9]} 30. Nb6+ {[%clk 0:00:17.7]} 30... Kb8
{[%clk 0:00:10.4]} 31. Qa5 {[%clk 0:00:18.3]} 31... Qd4 {[%clk 0:00:07.7]} 32.
Nxd5 {[%clk 0:00:17.7]} 32... Rc5 {[%clk 0:00:08.8]} 33. Qb6 {[%clk 0:00:17.3]}
33... Rxd5 {[%clk 0:00:09.8]} 34. Qxd4 {[%clk 0:00:17.2]} 34... Rxd4 {[%clk
0:00:10.4]} 0-1

[Event "*** Titled Tuesday 3|2 Blitz (Early)"]
[Site "Chess.com"]
[Date "2016.12.06"]
[Round "1"]
[White "pKiLz5Rn9b"]
[Black "Vrolijk"]
[Result "1/2-1/2"]
[WhiteElo "2496"]
[BlackElo "2170"]
[TimeControl "180+2"]
[EndTime "11:08:25 PST"]
[Termination "Game drawn by agreement"]

1. e4 {[%clk 0:03:02]} 1... g6 {[%clk 0:02:59.4]} 2. d4 {[%clk 0:03:02.8]} 2...
Bg7 {[%clk 0:03:00.9]} 3. Nf3 {[%clk 0:03:04.4]} 3... d6 {[%clk 0:03:02.2]} 4.
h3 {[%clk 0:03:05.4]} 4... Nf6 {[%clk 0:03:01.9]} 5. Nc3 {[%clk 0:03:06.8]} 5...
O-O {[%clk 0:03:00.6]} 6. Be3 {[%clk 0:03:08.4]} 6... a6 {[%clk 0:03:01.6]} 7.
a4 {[%clk 0:03:09.3]} 7... Nbd7 {[%clk 0:02:59.6]} 8. Be2 {[%clk 0:03:09]} 8...
e5 {[%clk 0:03:00.2]} 9. dxe5 {[%clk 0:03:08.4]} 9... dxe5 {[%clk 0:02:57.9]}
10. Bc4 {[%clk 0:03:09.5]} 10... Qe7 {[%clk 0:02:55.4]} 11. a5 {[%clk
0:03:08.4]} 11... Rd8 {[%clk 0:02:54.6]} 12. Qe2 {[%clk 0:03:09.5]} 12... Nc5
{[%clk 0:02:51.7]} 13. Bxc5 {[%clk 0:02:54.4]} 13... Qxc5 {[%clk 0:02:50.7]} 14.
Ng5 {[%clk 0:02:48.2]} 14... Rf8 {[%clk 0:02:47.7]} 15. O-O {[%clk 0:02:47.7]}
15... h6 {[%clk 0:02:45.4]} 16. Nf3 {[%clk 0:02:48.7]} 16... Bd7 {[%clk
0:02:45.8]} 17. Rfd1 {[%clk 0:02:46.3]} 17... Rad8 {[%clk 0:02:42.2]} 18. Nd5
{[%clk 0:02:46.9]} 18... Nxd5 {[%clk 0:02:39.2]} 19. Bxd5 {[%clk 0:02:41.7]}
19... Bc8 {[%clk 0:02:34.7]} 20. c3 {[%clk 0:02:38.5]} 20... c6 {[%clk 0:02:25]}
21. Bb3 {[%clk 0:02:35.8]} 21... Rxd1+ {[%clk 0:02:14.7]} 22. Qxd1 {[%clk
0:02:37.1]} 22... Bf6 {[%clk 0:02:15.5]} 23. Qe2 {[%clk 0:02:33]} 23... Rd8
{[%clk 0:02:10.4]} 24. Qc4 {[%clk 0:02:32]} 24... Qxc4 {[%clk 0:02:07.1]} 25.
Bxc4 {[%clk 0:02:33.9]} 25... Kf8 {[%clk 0:02:05.2]} 26. Kf1 {[%clk 0:02:34.9]}
26... Ke7 {[%clk 0:02:06.1]} 27. Ke2 {[%clk 0:02:36.4]} 27... h5 {[%clk
0:02:03.8]} 28. Bb3 {[%clk 0:02:34.7]} 28... g5 {[%clk 0:02:02.2]} 29. Ra4
{[%clk 0:02:22.9]} 29... g4 {[%clk 0:01:52.6]} 30. hxg4 {[%clk 0:02:24.1]} 30...
Bxg4 {[%clk 0:01:52.7]} 31. Ra1 {[%clk 0:02:04.8]} 31... h4 {[%clk 0:01:45.4]}
32. Rh1 {[%clk 0:02:03.6]} 32... Bg5 {[%clk 0:01:42.4]} 33. Rd1 {[%clk
0:01:56.4]} 33... Ke8 {[%clk 0:01:25.9]} 34. Bc2 {[%clk 0:01:35.9]} 34... Rxd1
{[%clk 0:01:23.9]} 35. Bxd1 {[%clk 0:01:36.7]} 35... Bd8 {[%clk 0:01:20.4]} 36.
b4 {[%clk 0:01:37.7]} 36... Bxf3+ {[%clk 0:01:20.8]} 37. Kxf3 {[%clk 0:01:35.7]}
37... Kd7 {[%clk 0:01:18.5]} 38. Bb3 {[%clk 0:01:35]} 38... c5 {[%clk
0:01:09.6]} 39. Bc4 {[%clk 0:01:16.3]} 39... cxb4 {[%clk 0:01:09]} 40. cxb4
{[%clk 0:01:18.2]} 40... Be7 {[%clk 0:01:05.7]} 41. b5 {[%clk 0:01:18.8]} 41...
axb5 {[%clk 0:01:06.1]} 42. Bxb5+ {[%clk 0:01:20.5]} 42... Ke6 {[%clk
0:01:07.6]} 43. Bc4+ {[%clk 0:01:19.5]} 43... Kf6 {[%clk 0:01:07.9]} 44. Kg4
{[%clk 0:01:15.5]} 44... Kg6 {[%clk 0:01:07.6]} 45. Bd5 {[%clk 0:01:07.6]} 45...
Bd8 {[%clk 0:01:08]} 46. Bxb7 {[%clk 0:01:08.6]} 46... Bxa5 {[%clk 0:01:09.1]}
47. Kxh4 {[%clk 0:01:10.2]} 47... Bd2 {[%clk 0:01:09.8]} 48. Kg4 {[%clk
0:01:10.3]} 48... Bc1 {[%clk 0:01:07.9]} 49. g3 {[%clk 0:01:11.4]} 49... Bd2
{[%clk 0:01:08.8]} 50. Bc8 {[%clk 0:01:12.2]} 50... f6 {[%clk 0:01:08.9]} 51.
Bf5+ {[%clk 0:01:12.2]} 51... Kh6 {[%clk 0:01:10.1]} 52. Kf3 {[%clk 0:01:11.6]}
52... Kg5 {[%clk 0:01:10.4]} 53. Ke2 {[%clk 0:01:12.4]} 53... Bc1 {[%clk
0:01:11.6]} 54. Kd1 {[%clk 0:01:13]} 54... Ba3 {[%clk 0:01:12.7]} 55. Ke2 {[%clk
0:01:12.7]} 55... Bc1 {[%clk 0:01:13.4]} 56. Kd3 {[%clk 0:01:11.3]} 56... Ba3
{[%clk 0:01:13.5]} 57. Ke3 {[%clk 0:01:09.9]} 57... Bc1+ {[%clk 0:01:14.2]} 58.
Kf3 {[%clk 0:01:11.8]} 58... Ba3 {[%clk 0:01:14.6]} 59. Ke2 {[%clk 0:01:04.9]}
1/2-1/2

[Event "*** Titled Tuesday 3|2 Blitz (Early)"]
[Site "Chess.com"]
[Date "2016.12.06"]
[Round "1"]
[White "Enzy63"]
[Black "RitvarsReimanis"]
[Result "0-1"]
[WhiteElo "2016"]
[BlackElo "2417"]
[TimeControl "180+2"]
[EndTime "11:08:29 PST"]
[Termination "RitvarsReimanis won on time"]

1. d4 {[%clk 0:03:02]} 1... Nf6 {[%clk 0:02:59.2]} 2. Nf3 {[%clk 0:03:01.8]}
2... e6 {[%clk 0:02:58.1]} 3. c4 {[%clk 0:03:02.1]} 3... d5 {[%clk 0:02:57.7]}
4. g3 {[%clk 0:03:02.7]} 4... Be7 {[%clk 0:02:55.1]} 5. Bg2 {[%clk 0:03:03.5]}
5... O-O {[%clk 0:02:54]} 6. O-O {[%clk 0:03:04.9]} 6... dxc4 {[%clk 0:02:52.3]}
7. Qc2 {[%clk 0:03:05.9]} 7... b5 {[%clk 0:02:49.9]} 8. a4 {[%clk 0:02:54.5]}
8... b4 {[%clk 0:02:48.8]} 9. Ne5 {[%clk 0:02:29.4]} 9... Nd5 {[%clk 0:02:47.8]}
10. Qxc4 {[%clk 0:02:20.5]} 10... Bb7 {[%clk 0:02:16.2]} 11. Rd1 {[%clk
0:01:44.7]} 11... a5 {[%clk 0:02:09.1]} 12. e4 {[%clk 0:01:40.1]} 12... Nf6
{[%clk 0:01:57.6]} 13. d5 {[%clk 0:01:18.1]} 13... exd5 {[%clk 0:01:53.7]} 14.
exd5 {[%clk 0:01:18.7]} 14... Bd6 {[%clk 0:01:46.9]} 15. Nc6 {[%clk 0:01:04.1]}
15... Nxc6 {[%clk 0:01:47.3]} 16. dxc6 {[%clk 0:01:04.3]} 16... Ba6 {[%clk
0:01:48.6]} 17. Qh4 {[%clk 0:01:00]} 17... h6 {[%clk 0:01:32.6]} 18. Bf4 {[%clk
0:00:52.6]} 18... Ne8 {[%clk 0:01:15.2]} 19. Qh5 {[%clk 0:00:49.6]} 19... Qf6
{[%clk 0:01:09.4]} 20. Bxd6 {[%clk 0:00:44.6]} 20... Nxd6 {[%clk 0:01:09.8]} 21.
Nd2 {[%clk 0:00:45]} 21... Rfe8 {[%clk 0:00:56.6]} 22. Re1 {[%clk 0:00:41.3]}
22... Rxe1+ {[%clk 0:00:38]} 23. Rxe1 {[%clk 0:00:43.2]} 23... Qxb2 {[%clk
0:00:37.8]} 24. Ne4 {[%clk 0:00:32.8]} 24... Nxe4 {[%clk 0:00:34.9]} 25. Bxe4
{[%clk 0:00:34.7]} 25... Qf6 {[%clk 0:00:30.1]} 26. Qxa5 {[%clk 0:00:31.9]}
26... b3 {[%clk 0:00:25.8]} 27. Qb4 {[%clk 0:00:28.3]} 27... b2 {[%clk
0:00:19.1]} 28. Rb1 {[%clk 0:00:29]} 28... Re8 {[%clk 0:00:20.2]} 29. Bg2 {[%clk
0:00:13.6]} 29... Re2 {[%clk 0:00:20.1]} 30. Qf4 {[%clk 0:00:05.7]} 30... Qxf4
{[%clk 0:00:17.2]} 31. gxf4 {[%clk 0:00:07]} 31... Bd3 {[%clk 0:00:17.9]} 32.
Bf1 {[%clk 0:00:02.1]} 32... Bxb1 {[%clk 0:00:16.3]} 33. Bxe2 {[%clk 0:00:03.4]}
33... Be4 {[%clk 0:00:17.2]} 0-1

[Event "*** Titled Tuesday 3|2 Blitz (Early)"]
[Site "Chess.com"]
[Date "2016.12.06"]
[Round "1"]
[White "Generalas"]
[Black "SmoothAsAHedgehog"]
[Result "0-1"]
[WhiteElo "2219"]
[BlackElo "2505"]
[TimeControl "180+2"]
[EndTime "11:08:35 PST"]
[Termination "SmoothAsAHedgehog won by resignation"]

1. e4 {[%clk 0:03:02]} 1... e5 {[%clk 0:03:00.4]} 2. Nf3 {[%clk 0:03:02.5]} 2...
Nc6 {[%clk 0:03:01.1]} 3. Bb5 {[%clk 0:03:02.5]} 3... a6 {[%clk 0:03:01.5]} 4.
Ba4 {[%clk 0:03:03.6]} 4... Nf6 {[%clk 0:03:01.1]} 5. O-O {[%clk 0:03:04.1]}
5... Be7 {[%clk 0:02:59.4]} 6. Re1 {[%clk 0:03:04.4]} 6... b5 {[%clk 0:03:00.2]}
7. Bb3 {[%clk 0:03:05.2]} 7... d6 {[%clk 0:03:01.6]} 8. c3 {[%clk 0:03:05.9]}
8... O-O {[%clk 0:03:01.2]} 9. h3 {[%clk 0:03:06.1]} 9... Nb8 {[%clk 0:02:56.4]}
10. d4 {[%clk 0:03:04.7]} 10... Nbd7 {[%clk 0:02:57]} 11. Nbd2 {[%clk
0:03:03.6]} 11... Bb7 {[%clk 0:02:57.9]} 12. Bc2 {[%clk 0:03:03.9]} 12... Re8
{[%clk 0:02:58.9]} 13. Nf1 {[%clk 0:02:50.1]} 13... Bf8 {[%clk 0:02:59]} 14. Ng3
{[%clk 0:02:50.9]} 14... g6 {[%clk 0:02:59.7]} 15. a4 {[%clk 0:02:49]} 15... Bg7
{[%clk 0:02:59.2]} 16. Nh2 {[%clk 0:02:21.3]} 16... c5 {[%clk 0:02:45.6]} 17. d5
{[%clk 0:02:17.2]} 17... c4 {[%clk 0:02:46.5]} 18. Be3 {[%clk 0:01:53.7]} 18...
Qc7 {[%clk 0:02:46.4]} 19. Qf3 {[%clk 0:01:38.4]} 19... Nc5 {[%clk 0:02:42.8]}
20. a5 {[%clk 0:01:37.4]} 20... h5 {[%clk 0:02:39.3]} 21. Bg5 {[%clk 0:01:34.9]}
21... Nh7 {[%clk 0:02:40.1]} 22. Be3 {[%clk 0:01:33.5]} 22... Rac8 {[%clk
0:02:34.5]} 23. Ne2 {[%clk 0:01:11.7]} 23... Rf8 {[%clk 0:02:31.4]} 24. g4
{[%clk 0:01:11.8]} 24... hxg4 {[%clk 0:02:29.7]} 25. hxg4 {[%clk 0:01:12.2]}
25... Qe7 {[%clk 0:02:29.6]} 26. Qg3 {[%clk 0:01:05.4]} 26... Ng5 {[%clk
0:02:27]} 27. f3 {[%clk 0:01:01.9]} 27... Nh7 {[%clk 0:02:07.4]} 28. g5 {[%clk
0:00:59.3]} 28... f5 {[%clk 0:01:42.5]} 29. gxf6 {[%clk 0:00:59.3]} 29... Bxf6
{[%clk 0:01:41.9]} 30. Qxg6+ {[%clk 0:00:39]} 30... Kh8 {[%clk 0:01:43.1]} 31.
Kh1 {[%clk 0:00:39.5]} 31... Rg8 {[%clk 0:01:44.7]} 32. Qh5 {[%clk 0:00:38.7]}
32... Nd3 {[%clk 0:01:42]} 33. Bxd3 {[%clk 0:00:29.6]} 33... cxd3 {[%clk
0:01:43.9]} 34. Nc1 {[%clk 0:00:30.9]} 34... Bg5 {[%clk 0:01:39.3]} 35. Nxd3
{[%clk 0:00:29.5]} 35... Bxe3 {[%clk 0:01:40.2]} 36. Rxe3 {[%clk 0:00:30.6]}
36... Rg5 {[%clk 0:01:41.8]} 37. Qh3 {[%clk 0:00:30.7]} 37... Rcg8 {[%clk
0:01:43.3]} 38. Nf2 {[%clk 0:00:26.8]} 38... Bc8 {[%clk 0:01:44.6]} 39. Nhg4
{[%clk 0:00:27.9]} 39... Qf7 {[%clk 0:01:44]} 40. Kg2 {[%clk 0:00:26.3]} 40...
R8g7 {[%clk 0:01:38.3]} 41. Rh1 {[%clk 0:00:25.9]} 41... Kg8 {[%clk 0:01:39.2]}
42. Kf1 {[%clk 0:00:26.8]} 42... Bxg4 {[%clk 0:01:33.9]} 43. Nxg4 {[%clk
0:00:26.8]} 43... Rxg4 {[%clk 0:01:32.4]} 44. Re2 {[%clk 0:00:17.5]} 44... Rg3
{[%clk 0:01:20.5]} 45. Qc8+ {[%clk 0:00:17.3]} 45... Nf8 {[%clk 0:01:21.7]} 46.
Reh2 {[%clk 0:00:17.2]} 46... Qxf3+ {[%clk 0:01:19.9]} 47. Ke1 {[%clk
0:00:18.5]} 47... Rg1+ {[%clk 0:01:20.1]} 48. Kd2 {[%clk 0:00:19.4]} 48... Rxh1
{[%clk 0:01:17.2]} 0-1

[Event "*** Titled Tuesday 3|2 Blitz (Early)"]
[Site "Chess.com"]
[Date "2016.12.06"]
[Round "1"]
[White "PowerThinking2650"]
[Black "GianmarcoVaR"]
[Result "1-0"]
[WhiteElo "2124"]
[BlackElo "2421"]
[TimeControl "180+2"]
[EndTime "11:08:44 PST"]
[Termination "PowerThinking2650 won on time"]

1. e4 {[%clk 0:02:54.4]} 1... c6 {[%clk 0:02:55.3]} 2. d4 {[%clk 0:02:54.4]}
2... d5 {[%clk 0:02:56.2]} 3. exd5 {[%clk 0:02:56.3]} 3... cxd5 {[%clk
0:02:56.7]} 4. Bd3 {[%clk 0:02:57.8]} 4... Nc6 {[%clk 0:02:56.6]} 5. c3 {[%clk
0:02:59]} 5... Nf6 {[%clk 0:02:53.8]} 6. Nf3 {[%clk 0:02:52.7]} 6... Bg4 {[%clk
0:02:51.1]} 7. Qb3 {[%clk 0:02:52.3]} 7... Qc7 {[%clk 0:02:43.8]} 8. Nbd2 {[%clk
0:02:39.4]} 8... e6 {[%clk 0:02:38.4]} 9. h3 {[%clk 0:02:39.9]} 9... Bh5 {[%clk
0:02:39]} 10. O-O {[%clk 0:02:34.5]} 10... Bd6 {[%clk 0:02:39.3]} 11. Re1 {[%clk
0:02:18.3]} 11... O-O {[%clk 0:02:38.9]} 12. g4 {[%clk 0:02:05.8]} 12... Bg6
{[%clk 0:02:38.2]} 13. Bxg6 {[%clk 0:02:04.5]} 13... hxg6 {[%clk 0:02:39.4]} 14.
Nf1 {[%clk 0:02:04.5]} 14... Rab8 {[%clk 0:02:34.3]} 15. a4 {[%clk 0:02:04.5]}
15... a6 {[%clk 0:02:32.4]} 16. Bg5 {[%clk 0:01:59.8]} 16... Ne4 {[%clk
0:02:30.1]} 17. Be3 {[%clk 0:01:53.9]} 17... b5 {[%clk 0:01:52.8]} 18. axb5
{[%clk 0:01:53.8]} 18... axb5 {[%clk 0:01:28.3]} 19. N1d2 {[%clk 0:01:54.3]}
19... Nxd2 {[%clk 0:01:08.3]} 20. Bxd2 {[%clk 0:01:46.4]} 20... b4 {[%clk
0:00:59.6]} 21. Qc2 {[%clk 0:01:34.1]} 21... bxc3 {[%clk 0:00:46.4]} 22. bxc3
{[%clk 0:01:34.8]} 22... Rb6 {[%clk 0:00:45.9]} 23. c4 {[%clk 0:01:31.2]} 23...
dxc4 {[%clk 0:00:43.6]} 24. Qxc4 {[%clk 0:01:31.4]} 24... Qb7 {[%clk 0:00:40.2]}
25. d5 {[%clk 0:01:22.2]} 25... Ne7 {[%clk 0:00:38.2]} 26. Ba5 {[%clk
0:01:10.7]} 26... exd5 {[%clk 0:00:31.3]} 27. Qd4 {[%clk 0:00:56.4]} 27... Rb3
{[%clk 0:00:22.8]} 28. Bc3 {[%clk 0:00:55.8]} 28... f6 {[%clk 0:00:16.1]} 29.
Ra7 {[%clk 0:00:55.6]} 29... Qc6 {[%clk 0:00:12.2]} 30. Rexe7 {[%clk 0:00:10.5]}
1-0